[Event "10th Uppsala Young Champions 2023"]
[Site "Uppsala"]
[Date "2023.10.30"]
[Round "6.2"]
[White "Stefansson, Vignir Vatnar"]
[Black "Ljung, Harald"]
[Result "1-0"]
[ECO "A05"]
[WhiteElo "2484"]
[BlackElo "2159"]
[Annotator "RC"]
[PlyCount "41"]
[EventDate "2023.10.27"]
[EventType "swiss"]
[EventCountry "SWE"]
[SourceTitle "playchess.com"]
[Source "ChessBase"]
[SourceQuality "1"]
[TimeControl "5400+30"]

1. Nf3 {[%emt 0:00:02]} Nf6 {[%emt 0:00:16]} 2. g3 {[%emt 0:00:06]} b6 {[%emt 0:00:44]} 3. Bg2 {[%emt 0:00:07]} Bb7 {[%emt 0:00:05]} 4. O-O {[%emt 0:00:07]} e6 {[%emt 0:00:06]} 5. d3 {[%emt 0:00:12]} Be7 {[%emt 0:00:21]} 6. Nbd2 {[%emt 0:00:21]} O-O {[%emt 0:00:15]} 7. e4 {[%emt 0:00:03]} d6 {[%emt 0:00:20]} 8. Qe2 {[%emt 0:02:08]} Nbd7 {[%emt 0:01:31]} 9. d4 {[%emt 0:00:08]} c5 {[%emt 0:03:11]} 10. c4 {[%emt 0:00:11]} Rc8 {[%emt 0:01:26]} 11. b3 {[%emt 0:01:52]} d5 {[%emt 0:05:24]} 12. cxd5 {[%emt 0:02:03]} exd5 {[%emt 0:00:20]} 13. e5 {[%emt 0:00:04]} Ne4 {[%emt 0:03:50]} 14. Bb2 {[%emt 0:00:23]} cxd4 {[%emt 0:01:07]} 15. Nxe4 {[%emt 0:03:04]} dxe4 {[%emt 0:01:17]} 16. Nxd4 {[%emt 0:00:02]} Nc5 {[%emt 0:07:19]} 17. Nf5 {[%emt 0:01:19]} Nd3 {[%emt 0:03:47]} 18. Bd4 {[%emt 0:07:35]} Bc5 {[%emt 0:19:38]} 19. Bxe4 {[%emt 0:01:54]} Bxd4 {[%emt 0:03:17]} 20. Bxb7 {[%emt 0:00:50]} Re8 {[%emt 0:07:20]} 21. Nxd4 {[%emt 0:01:40]} 1-0

[Event "10th Uppsala Young Champions 2023"]
[Site "Uppsala"]
[Date "2023.10.30"]
[Round "6.3"]
[White "Sorensen, Hampus"]
[Black "Grahn, Vidar"]
[Result "1-0"]
[ECO "D87"]
[WhiteElo "2470"]
[BlackElo "2133"]
[Annotator "RC"]
[PlyCount "105"]
[EventDate "2023.10.27"]
[EventType "swiss"]
[EventCountry "SWE"]
[SourceTitle "playchess.com"]
[Source "ChessBase"]
[SourceQuality "1"]
[TimeControl "5400+30"]

1. d4 {[%emt 0:00:21]} Nf6 {[%emt 0:00:03]} 2. c4 {[%emt 0:00:12]} g6 {[%emt 0:00:03]} 3. Nc3 {[%emt 0:00:29]} d5 {[%emt 0:00:06]} 4. cxd5 {[%emt 0:00:31]} Nxd5 {[%emt 0:00:05]} 5. e4 {[%emt 0:00:09]} Nxc3 {[%emt 0:00:04]} 6. bxc3 {[%emt 0:00:03]} Bg7 {[%emt 0:00:05]} 7. Bc4 {[%emt 0:00:28]} c5 {[%emt 0:00:10]} 8. Ne2 {[%emt 0:00:33]} Nc6 {[%emt 0:00:25]} 9. Be3 {[%emt 0:00:18]} O-O {[%emt 0:00:08]} 10. O-O {[%emt 0:00:13]} Bg4 {[%emt 0:00:08]} 11. f3 {[%emt 0:00:29]} Na5 {[%emt 0:00:05]} 12. Bxf7+ {[%emt 0:00:53]} Rxf7 {[%emt 0:00:13]} 13. fxg4 {[%emt 0:00:06]} Rxf1+ {[%emt 0:00:06]} 14. Kxf1 {[%emt 0:00:07]} Qd6 {[%emt 0:00:11]} 15. Kg1 {[%emt 0:00:37]} Qe6 {[%emt 0:01:59]} 16. Qc2 {[%emt 0:01:20]} cxd4 {[%emt 0:02:39]} 17. cxd4 {[%emt 0:01:16]} Rc8 {[%emt 0:01:40]} 18. Qd3 {[%emt 0:00:19]} Nc4 {[%emt 0:02:18]} 19. Bf2 {[%emt 0:11:00]} Qxg4 {[%emt 0:02:33]} 20. h3 {[%emt 0:10:43]} Qd7 {[%emt 0:02:00]} 21. Qb3 {[%emt 0:08:42]} b5 {[%emt 0:07:02]} 22. a4 {[%emt 0:02:55]} a6 {[%emt 0:01:45]} 23. e5 {[%emt 0:00:32]} e6 {[%emt 0:07:44]} 24. axb5 {[%emt 0:14:15]} axb5 {[%emt 0:01:43]} 25. Nc3 {[%emt 0:02:21]} Rb8 {[%emt 0:03:13]} 26. Ra6 {[%emt 0:04:02]} Qc8 {[%emt 0:05:42]} 27. Ra2 {[%emt 0:04:33]} Bh6 {[%emt 0:13:41]} 28. Ne4 {[%emt 0:01:44]} Ra8 {[%emt 0:06:00]} 29. Rxa8 {[%emt 0:04:28]} Qxa8 {[%emt 0:00:10]} 30. Nf6+ {[%emt 0:00:33]} Kh8 {[%emt 0:00:59]} 31. Qxb5 {[%emt 0:00:23]} Ne3 {[%emt 0:00:37]} 32. Qe8+ {[%emt 0:04:21]} Qxe8 {[%emt 0:00:06]} 33. Nxe8 {[%emt 0:00:02]} Kg8 {[%emt 0:03:09]} 34. Nf6+ {[%emt 0:00:51]} Kf7 {[%emt 0:01:28]} 35. Ne4 {[%emt 0:03:33]} Nd5 {[%emt 0:01:22]} 36. Kf1 {[%emt 0:00:42]} Bc1 {[%emt 0:03:56]} 37. Ke2 {[%emt 0:01:30]} h5 {[%emt 0:01:45]} 38. Nd6+ {[%emt 0:04:07]} Kg7 {[%emt 0:02:45]} 39. Nc4 {[%emt 0:00:14]} Bg5 {[%emt 0:03:20]} 40. Be3 {[%emt 0:00:19]} Be7 {[%emt 0:00:38]} 41. Bd2 {[%emt 0:00:28]} g5 {[%emt 0:01:45]} 42. g4 {[%emt 0:02:52]} h4 {[%emt 0:03:44]} 43. Kf3 {[%emt 0:02:13]} Kg6 {[%emt 0:00:13]} 44. Nd6 {[%emt 0:00:27]} Bxd6 {[%emt 0:03:42]} 45. exd6 {[%emt 0:00:04]} Nf6 {[%emt 0:00:06]} 46. Ba5 {[%emt 0:00:18]} Nd7 {[%emt 0:01:33]} 47. Ke4 {[%emt 0:03:12]} Nb8 {[%emt 0:01:55]} 48. Bc7 {[%emt 0:01:00]} Nd7 {[%emt 0:00:05]} 49. Bd8 {[%emt 0:00:47]} Kf7 {[%emt 0:00:27]} 50. Bxg5 {[%emt 0:00:17]} e5 {[%emt 0:00:20]} 51. d5 {[%emt 0:00:28]} Nb6 {[%emt 0:00:31]} 52. Bd8 {[%emt 0:01:15]} Nd7 {[%emt 0:00:28]} 53. Bxh4 {[%emt 0:00:07]} 1-0

[Event "10th Uppsala Young Champions 2023"]
[Site "Uppsala"]
[Date "2023.10.30"]
[Round "6.4"]
[White "Domalchuk-Jonasson, Aleksandr"]
[Black "Steiners, Emils"]
[Result "1-0"]
[ECO "E08"]
[WhiteElo "2392"]
[BlackElo "1914"]
[Annotator "RC"]
[PlyCount "87"]
[EventDate "2023.10.27"]
[EventType "swiss"]
[EventCountry "SWE"]
[SourceTitle "playchess.com"]
[Source "ChessBase"]
[SourceQuality "1"]
[TimeControl "5400+30"]

1. d4 {[%emt 0:00:07]} d5 {[%emt 0:00:06]} 2. Nf3 {[%emt 0:00:11]} Nf6 {[%emt 0:00:07]} 3. g3 {[%emt 0:00:09]} e6 {[%emt 0:00:05]} 4. Bg2 {[%emt 0:00:07]} Be7 {[%emt 0:00:12]} 5. O-O {[%emt 0:00:06]} O-O {[%emt 0:00:10]} 6. c4 {[%emt 0:00:04]} Nbd7 {[%emt 0:00:08]} 7. Qc2 {[%emt 0:00:21]} b6 {[%emt 0:02:07]} 8. cxd5 {[%emt 0:04:51]} Nxd5 {[%emt 0:05:45]} 9. a3 {[%emt 0:09:50]} Bb7 {[%emt 0:02:12]} 10. e4 {[%emt 0:00:49]} N5f6 {[%emt 0:00:40]} 11. Nc3 {[%emt 0:00:15]} c5 {[%emt 0:06:19]} 12. Rd1 {[%emt 0:08:09]} cxd4 {[%emt 0:16:41]} 13. Nxd4 {[%emt 0:00:20]} Rc8 {[%emt 0:04:14]} 14. Qe2 {[%emt 0:02:01]} Bc5 {[%emt 0:12:50]} 15. Bg5 {[%emt 0:05:30]} Qe8 {[%emt 0:10:28]} 16. Ndb5 {[%emt 0:07:31]} a6 {[%emt 0:04:10]} 17. Nd6 {[%emt 0:00:21]} Bxd6 {[%emt 0:00:13]} 18. Rxd6 {[%emt 0:00:06]} b5 {[%emt 0:09:02]} 19. e5 {[%emt 0:07:19]} Nd5 {[%emt 0:02:07]} 20. Nxd5 {[%emt 0:00:35]} Bxd5 {[%emt 0:00:52]} 21. Bxd5 {[%emt 0:02:27]} exd5 {[%emt 0:00:05]} 22. Rxd5 {[%emt 0:00:30]} f6 {[%emt 0:05:20]} 23. Bf4 {[%emt 0:05:21]} fxe5 {[%emt 0:04:49]} 24. Bxe5 {[%emt 0:01:02]} Rf5 {[%emt 0:03:28]} 25. Qd3 {[%emt 0:06:11]} Rxe5 {[%emt 0:03:07]} 26. Rxd7 {[%emt 0:00:04]} Re7 {[%emt 0:03:44]} 27. Qd5+ {[%emt 0:00:52]} Kh8 {[%emt 0:02:14]} 28. Rd1 {[%emt 0:01:32]} h6 {[%emt 0:02:40]} 29. Rd6 {[%emt 0:02:12]} Re1+ {[%emt 0:00:27]} 30. Rxe1 {[%emt 0:00:08]} Qxe1+ {[%emt 0:00:04]} 31. Kg2 {[%emt 0:00:02]} Rf8 {[%emt 0:00:35]} 32. Qd4 {[%emt 0:00:37]} Qe7 {[%emt 0:00:36]} 33. Rxh6+ {[%emt 0:00:22]} Kg8 {[%emt 0:00:16]} 34. Qd5+ {[%emt 0:00:07]} Rf7 {[%emt 0:00:30]} 35. Rxa6 {[%emt 0:00:08]} Kh8 {[%emt 0:00:57]} 36. h4 {[%emt 0:02:10]} Rf8 {[%emt 0:00:39]} 37. Ra8 {[%emt 0:03:16]} Rxa8 {[%emt 0:00:30]} 38. Qxa8+ {[%emt 0:00:04]} Kh7 {[%emt 0:00:05]} 39. Qd5 {[%emt 0:00:26]} b4 {[%emt 0:00:19]} 40. a4 {[%emt 0:00:12]} Qe2 {[%emt 0:00:40]} 41. b3 {[%emt 0:00:10]} g6 {[%emt 0:00:26]} 42. a5 {[%emt 0:00:06]} Kh6 {[%emt 0:00:15]} 43. Qd4 {[%emt 0:00:13]} Qb5 {[%emt 0:00:27]} 44. Qh8# {[%emt 0:00:07]} 1-0

[Event "10th Uppsala Young Champions 2023"]
[Site "Uppsala"]
[Date "2023.10.30"]
[Round "6.5"]
[White "Morell, Ludvig"]
[Black "Falkevall, Axel"]
[Result "0-1"]
[ECO "C54"]
[WhiteElo "2017"]
[BlackElo "2280"]
[Annotator "RC"]
[PlyCount "86"]
[EventDate "2023.10.27"]
[EventType "swiss"]
[EventCountry "SWE"]
[SourceTitle "playchess.com"]
[Source "ChessBase"]
[SourceQuality "1"]
[TimeControl "5400+30"]

1. e4 {[%emt 0:00:02]} e5 {[%emt 0:00:08]} 2. Nf3 {[%emt 0:00:04]} Nc6 {[%emt 0:00:04]} 3. Bc4 {[%emt 0:00:03]} Nf6 {[%emt 0:00:07]} 4. d3 {[%emt 0:00:03]} Bc5 {[%emt 0:00:17]} 5. c3 {[%emt 0:00:21]} a5 {[%emt 0:00:16]} 6. Nbd2 {[%emt 0:01:20]} d6 {[%emt 0:01:31]} 7. h3 {[%emt 0:00:32]} O-O {[%emt 0:00:46]} 8. Nf1 {[%emt 0:02:22]} Be6 {[%emt 0:00:29]} 9. Bxe6 {[%emt 0:01:13]} fxe6 {[%emt 0:00:11]} 10. Be3 {[%emt 0:00:58]} Bxe3 {[%emt 0:01:00]} 11. Nxe3 {[%emt 0:01:01]} a4 {[%emt 0:02:33]} 12. Qc2 {[%emt 0:01:58]} Nh5 {[%emt 0:03:04]} 13. O-O-O {[%emt 0:10:38]} Nf4 {[%emt 0:08:23]} 14. Nh2 {[%emt 0:11:50]} b5 {[%emt 0:03:46]} 15. g3 {[%emt 0:01:42]} Nh5 {[%emt 0:04:28]} 16. Qe2 {[%emt 0:02:23]} g6 {[%emt 0:01:42]} 17. d4 {[%emt 0:05:50]} a3 {[%emt 0:10:46]} 18. b3 {[%emt 0:03:04]} b4 {[%emt 0:11:47]} 19. dxe5 {[%emt 0:00:34]} Nxe5 {[%emt 0:01:25]} 20. Rhg1 {[%emt 0:10:46]} bxc3 {[%emt 0:10:01]} 21. f4 {[%emt 0:01:26]} Nd7 {[%emt 0:01:56]} 22. f5 {[%emt 0:01:22]} c2 {[%emt 0:06:00]} 23. Nxc2 {[%emt 0:05:08]} Qg5+ {[%emt 0:06:38]} 24. Kb1 {[%emt 0:06:45]} Nc5 {[%emt 0:05:59]} 25. Nd4 {[%emt 0:04:17]} exf5 {[%emt 0:08:39]} 26. exf5 {[%emt 0:01:17]} Rae8 {[%emt 0:02:15]} 27. Qc4+ {[%emt 0:02:27]} Kh8 {[%emt 0:00:05]} 28. g4 {[%emt 0:02:41]} Nf6 {[%emt 0:02:35]} 29. Ne6 {[%emt 0:07:05]} Nxe6 {[%emt 0:00:47]} 30. fxe6 {[%emt 0:00:08]} Qe5 {[%emt 0:00:47]} 31. Rg2 {[%emt 0:01:36]} Ne4 {[%emt 0:01:11]} 32. Rc2 {[%emt 0:02:09]} c5 {[%emt 0:01:39]} 33. Rf1 {[%emt 0:01:49]} d5 {[%emt 0:01:13]} 34. Qd3 {[%emt 0:02:04]} c4 {[%emt 0:01:10]} 35. Rxf8+ {[%emt 0:00:44]} Rxf8 {[%emt 0:00:06]} 36. e7 {[%emt 0:01:49]} Rb8 {[%emt 0:01:08]} 37. Qf3 {[%emt 0:00:17]} Qxe7 {[%emt 0:00:44]} 38. Qf4 {[%emt 0:00:20]} Rf8 {[%emt 0:00:25]} 39. Qe3 {[%emt 0:00:24]} Qf6 {[%emt 0:01:04]} 40. b4 {[%emt 0:01:05]} Rb8 {[%emt 0:00:36]} 41. Qxa3 {[%emt 0:00:18]} d4 {[%emt 0:00:58]} 42. g5 {[%emt 0:01:22]} Qd6 {[%emt 0:00:33]} 43. Nf3 {[%emt 0:02:29]} d3 {[%emt 0:00:30]} 0-1

[Event "10th Uppsala Young Champions 2023"]
[Site "Uppsala"]
[Date "2023.10.30"]
[Round "6.6"]
[White "Briem, Stephan"]
[Black "Seiger, Vidar"]
[Result "1-0"]
[ECO "E61"]
[WhiteElo "2144"]
[BlackElo "1908"]
[Annotator "NA RC"]
[PlyCount "109"]
[EventDate "2023.10.27"]
[EventType "swiss"]
[EventCountry "SWE"]
[SourceTitle "playchess.com"]
[Source "ChessBase"]
[SourceQuality "1"]
[TimeControl "5400+30"]

1. d4 {[%emt 0:00:03]} Nf6 {[%emt 0:01:15]} 2. c4 {[%emt 0:00:08]} g6 {[%emt 0:00:06]} 3. Nc3 {[%emt 0:00:07]} Bg7 {[%emt 0:00:06]} 4. Nf3 {[%emt 0:00:05]} O-O {[%emt 0:00:14]} 5. Bg5 {[%emt 0:00:04]} c5 {[%emt 0:01:58]} 6. d5 {[%emt 0:00:26]} h6 {[%emt 0:00:56]} 7. Bh4 {[%emt 0:00:16]} d6 {[%emt 0:00:26]} 8. e3 {[%emt 0:03:02]} a6 {[%emt 0:03:51]} 9. Nd2 {[%emt 0:03:43]} Nbd7 {[%emt 0:01:29]} 10. Be2 {[%emt 0:09:47]} Ne5 {[%emt 0:12:40]} 11. Qc2 {[%emt 0:05:15]} Qa5 {[%emt 0:08:06]} 12. O-O {[%emt 0:04:05]} Bf5 {[%emt 0:00:55]} 13. e4 {[%emt 0:01:11]} Bd7 {[%emt 0:00:11]} 14. a4 {[%emt 0:03:13]} g5 {[%emt 0:00:31]} 15. Bg3 {[%emt 0:00:16]} Ng6 {[%emt 0:00:07]} 16. Ra3 {[%emt 0:18:17]} Bg4 {[%emt 0:07:27]} 17. h3 {[%emt 0:09:44]} Bxe2 {[%emt 0:01:20]} 18. Nxe2 {[%emt 0:00:03]} Nh5 {[%emt 0:01:20]} 19. Nf3 {[%emt 0:11:44]} Qc7 {[%emt 0:06:21]} 20. Bh2 {[%emt 0:13:38]} Qd7 {[%emt 0:01:32]} 21. Ng3 {[%emt 0:07:24]} Nxg3 {[%emt 0:00:50]} 22. Bxg3 {[%emt 0:00:05]} b5 {[%emt 0:02:39]} 23. b3 {[%emt 0:03:09]} Rfb8 {[%emt 0:02:19]} 24. Re1 {[%emt 0:00:57]} bxc4 {[%emt 0:06:07]} 25. bxc4 {[%emt 0:01:30]} Rb2 {[%emt 0:02:36]} 26. Qd3 {[%emt 0:00:06]} Rab8 {[%emt 0:02:12]} 27. e5 {[%emt 0:00:50]} dxe5 {[%emt 0:00:27]} 28. Nxe5 {[%emt 0:03:00]} Nxe5 {[%emt 0:01:01]} 29. Bxe5 {[%emt 0:00:42]} Bxe5 {[%emt 0:00:03]} 30. Rxe5 {[%emt 0:00:06]} Rb1+ {[%emt 0:00:10]} 31. Kh2 {[%emt 0:00:06]} Qd6 {[%emt 0:00:25]} 32. Qg3 {[%emt 0:01:17]} Rc1 {[%emt 0:04:34]} 33. Rxe7 {[%emt 0:00:56]} Qxg3+ {[%emt 0:00:50]} 34. Kxg3 {[%emt 0:00:53]} Rxc4 {[%emt 0:00:23]} 35. Ra7 {[%emt 0:01:09]} Rd4 {[%emt 0:11:29]} 36. Rf3 {[%emt 0:00:15]} Rxd5 {[%emt 0:00:20]} 37. Rfxf7 {[%emt 0:00:15]} Rd6 {[%emt 0:02:12]} 38. Rg7+ {[%emt 0:00:28]} Kh8 {[%emt 0:00:20]} 39. Rh7+ {[%emt 0:00:02]} Kg8 {[%emt 0:00:09]} 40. Rhc7 {[%emt 0:01:00]} Rg6 {[%emt 0:05:26]} 41. Rxc5 {[%emt 0:00:22]} h5 {[%emt 0:00:32]} 42. f3 {[%emt 0:00:32]} Rd8 {[%emt 0:00:55]} 43. Rcc7 {[%emt 0:00:40]} Rf8 {[%emt 0:00:25]} 44. a5 {[%emt 0:00:43]} Rf4 {[%emt 0:01:24]} 45. Rcb7 {[%emt 0:00:18]} h4+ {[%emt 0:00:16]} 46. Kf2 {[%emt 0:00:24]} Rf5 {[%emt 0:02:09]} 47. Rb8+ {[%emt 0:00:06]} Rf8 {[%emt 0:00:05]} 48. Rb6 {[%emt 0:00:16]} Rxb6 {[%emt 0:00:45]} 49. axb6 {[%emt 0:00:06]} Rb8 {[%emt 0:00:10]} 50. Rxa6 {[%emt 0:00:19]} Kf7 {[%emt 0:00:33]} 51. Ke3 {[%emt 0:01:04]} Ke6 {[%emt 0:00:44]} 52. Ke4 {[%emt 0:00:41]} g4 {[%emt 0:00:38]} 53. hxg4 {[%emt 0:00:19]} Rb7 {[%emt 0:00:19]} 54. Kf4 {[%emt 0:00:59]} Kf6 {[%emt 0:00:03]} 55. g5+ {[%emt 0:00:09]} 1-0

[Event "10th Uppsala Young Champions 2023"]
[Site "Uppsala"]
[Date "2023.10.30"]
[Round "6.7"]
[White "Oksendal, Martin"]
[Black "Tripathi, Pratyush"]
[Result "1-0"]
[ECO "C06"]
[WhiteElo "2123"]
[BlackElo "1801"]
[Annotator "NA RC"]
[PlyCount "39"]
[EventDate "2023.10.27"]
[EventType "swiss"]
[EventCountry "SWE"]
[SourceTitle "playchess.com"]
[Source "ChessBase"]
[SourceQuality "1"]
[TimeControl "5400+30"]

1. e4 {[%emt 0:00:30]} e6 {[%emt 0:01:02]} 2. d4 {[%emt 0:00:13]} d5 {[%emt 0:00:07]} 3. Nd2 {[%emt 0:00:14]} Be7 {[%emt 0:00:48]} 4. Bd3 {[%emt 0:00:59]} Nf6 {[%emt 0:00:04]} 5. e5 {[%emt 0:00:44]} Nfd7 {[%emt 0:00:05]} 6. c3 {[%emt 1:30:50]} c5 {[%emt 0:00:12]} 7. Ne2 {[%emt 0:00:00]} Nc6 {[%emt 0:02:18]} 8. O-O {[%emt 0:00:00]} a6 {[%emt 0:02:02]} 9. f4 {[%emt 0:00:00]} b5 {[%emt 0:03:00]} 10. Nf3 {[%emt 0:00:00]} Qb6 {[%emt 0:06:06]} 11. Be3 {[%emt 0:00:00]} O-O {[%emt 0:03:00]} 12. dxc5 {[%emt 0:00:00]} Bxc5 {[%emt 0:00:04]} 13. Ned4 {[%emt 0:00:00]} h6 {[%emt 0:19:17]} 14. b4 {[%emt 0:00:00]} Nxd4 {[%emt 0:02:18]} 15. Nxd4 {[%emt 0:00:00]} Bxd4 {[%emt 0:00:05]} 16. Bxd4 {[%emt 0:00:00]} Qc7 {[%emt 0:00:18]} 17. Bc2 {[%emt 0:00:00]} Re8 {[%emt 0:10:32]} 18. Rf3 {[%emt 0:00:00]} Nb6 {[%emt 0:05:04]} 19. Rg3 {[%emt 0:00:00]} Nc4 {[%emt 0:01:04]} 20. Qg4 {[%emt 0:00:00]} 1-0

[Event "10th Uppsala Young Champions 2023"]
[Site "Uppsala"]
[Date "2023.10.30"]
[Round "6.8"]
[White "Muntean, Victor"]
[Black "Mai, Alexander Oliver"]
[Result "0-1"]
[ECO "B22"]
[WhiteElo "2092"]
[BlackElo "2118"]
[Annotator "NA RC"]
[PlyCount "90"]
[EventDate "2023.10.27"]
[EventType "swiss"]
[EventCountry "SWE"]
[SourceTitle "playchess.com"]
[Source "ChessBase"]
[SourceQuality "1"]
[TimeControl "5400+30"]

1. e4 {[%emt 0:00:02]} c5 {[%emt 0:00:09]} 2. c3 {[%emt 0:00:04]} Nf6 {[%emt 0:00:07]} 3. e5 {[%emt 0:00:04]} Nd5 {[%emt 0:00:05]} 4. Nf3 {[%emt 0:00:05]} d6 {[%emt 0:00:05]} 5. Bc4 {[%emt 0:00:13]} Nb6 {[%emt 0:00:24]} 6. Bb3 {[%emt 0:00:05]} c4 {[%emt 0:00:25]} 7. Bc2 {[%emt 0:00:05]} dxe5 {[%emt 0:01:50]} 8. Nxe5 {[%emt 0:00:27]} Qd5 {[%emt 0:01:03]} 9. Qe2 {[%emt 0:00:07]} f6 {[%emt 0:02:23]} 10. Nf3 {[%emt 0:07:21]} Qe6 {[%emt 0:01:42]} 11. Qxe6 {[%emt 0:08:55]} Bxe6 {[%emt 0:00:22]} 12. b3 {[%emt 0:01:06]} Nc6 {[%emt 0:10:50]} 13. O-O {[%emt 1:18:26]} Rd8 {[%emt 0:05:30]} 14. Re1 {[%emt 0:00:00]} Kf7 {[%emt 0:01:44]} 15. Na3 {[%emt 0:00:00]} Bd5 {[%emt 0:01:45]} 16. bxc4 {[%emt 0:00:00]} Nxc4 {[%emt 0:00:16]} 17. d4 {[%emt 0:00:00]} Nxa3 {[%emt 0:02:20]} 18. Bxa3 {[%emt 0:00:00]} e6 {[%emt 0:06:33]} 19. Bxf8 {[%emt 0:00:00]} Rhxf8 {[%emt 0:01:54]} 20. Bb3 {[%emt 0:00:00]} Na5 {[%emt 0:01:13]} 21. Nd2 {[%emt 0:00:00]} Rc8 {[%emt 0:01:17]} 22. Re3 {[%emt 0:00:00]} Rc7 {[%emt 0:04:52]} 23. Rae1 {[%emt 0:00:00]} Rfc8 {[%emt 0:03:15]} 24. c4 {[%emt 0:00:00]} Nxc4 {[%emt 0:02:02]} 25. Nxc4 {[%emt 0:00:00]} Bxc4 {[%emt 0:00:22]} 26. Rxe6 {[%emt 0:00:00]} Bxe6 {[%emt 0:19:22]} 27. Bxe6+ {[%emt 0:00:00]} Kf8 {[%emt 0:00:09]} 28. Bxc8 {[%emt 0:00:00]} Rxc8 {[%emt 0:00:01]} 29. Kf1 {[%emt 0:00:00]} Rc4 {[%emt 0:02:50]} 30. Rd1 {[%emt 0:00:00]} Ke7 {[%emt 0:01:21]} 31. Rd2 {[%emt 0:00:00]} Kd6 {[%emt 0:00:40]} 32. Ke2 {[%emt 0:00:00]} Kd5 {[%emt 0:00:45]} 33. Ke3 {[%emt 0:00:00]} Rc3+ {[%emt 0:01:28]} 34. Kf4 {[%emt 0:00:00]} Rc4 {[%emt 0:01:04]} 35. Ke3 {[%emt 0:00:00]} b5 {[%emt 0:05:20]} 36. h4 {[%emt 0:00:00]} a5 {[%emt 0:03:12]} 37. g4 {[%emt 0:02:55]} b4 {[%emt 0:01:07]} 38. h5 {[%emt 0:01:49]} a4 {[%emt 0:03:55]} 39. Kf3 {[%emt 0:02:10]} b3 {[%emt 0:04:41]} 40. axb3 {[%emt 0:01:12]} axb3 {[%emt 0:00:01]} 41. Rb2 {[%emt 0:00:08]} Rb4 {[%emt 0:00:44]} 42. Kf4 {[%emt 0:01:52]} Kxd4 {[%emt 0:00:57]} 43. Kf5 {[%emt 0:00:04]} Kc3 {[%emt 0:01:28]} 44. Rb1 {[%emt 0:00:09]} Kc2 {[%emt 0:00:34]} 45. Re1 {[%emt 0:00:04]} b2 {[%emt 0:00:39]} 0-1

[Event "10th Uppsala Young Champions 2023"]
[Site "Uppsala"]
[Date "2023.10.30"]
[Round "6.9"]
[White "Nilsson, Oliver"]
[Black "Valcu, Lavinia"]
[Result "1/2-1/2"]
[ECO "B12"]
[WhiteElo "1933"]
[BlackElo "1990"]
[Annotator "NA RC"]
[PlyCount "73"]
[EventDate "2023.10.27"]
[EventType "swiss"]
[EventCountry "SWE"]
[SourceTitle "playchess.com"]
[Source "ChessBase"]
[SourceQuality "1"]
[TimeControl "5400+30"]

1. e4 {[%emt 0:00:10]} c6 {[%emt 0:00:03]} 2. d4 {[%emt 0:00:06]} d5 {[%emt 0:00:06]} 3. f3 {[%emt 0:02:19]} dxe4 {[%emt 0:00:08]} 4. fxe4 {[%emt 0:00:03]} e5 {[%emt 0:00:14]} 5. Nf3 {[%emt 0:00:04]} Bg4 {[%emt 0:00:13]} 6. Bc4 {[%emt 0:00:05]} Nd7 {[%emt 0:04:00]} 7. O-O {[%emt 0:00:37]} Ngf6 {[%emt 0:02:19]} 8. c3 {[%emt 0:00:27]} Bd6 {[%emt 0:01:21]} 9. Bg5 {[%emt 0:00:19]} h6 {[%emt 0:04:03]} 10. Bh4 {[%emt 0:00:37]} g5 {[%emt 0:00:23]} 11. Bg3 {[%emt 0:02:46]} Qe7 {[%emt 0:00:26]} 12. Nbd2 {[%emt 0:07:00]} O-O-O {[%emt 0:02:30]} 13. Qa4 {[%emt 0:05:49]} Kb8 {[%emt 0:03:35]} 14. Qa5 {[%emt 0:25:10]} c5 {[%emt 0:22:46]} 15. Rae1 {[%emt 0:22:12]} Bh5 {[%emt 0:04:05]} 16. Bb3 {[%emt 0:06:19]} Bc7 {[%emt 0:12:46]} 17. Qa3 {[%emt 0:05:54]} Rhe8 {[%emt 0:04:52]} 18. Nc4 {[%emt 0:09:51]} Bxf3 {[%emt 0:04:23]} 19. Rxf3 {[%emt 0:01:17]} cxd4 {[%emt 0:02:07]} 20. Qxe7 {[%emt 0:04:53]} Rxe7 {[%emt 0:00:10]} 21. cxd4 {[%emt 0:00:03]} Nh5 {[%emt 0:09:22]} 22. Bxe5 {[%emt 0:01:37]} Nxe5 {[%emt 0:00:36]} 23. Nxe5 {[%emt 0:00:05]} Bb6 {[%emt 0:01:57]} 24. Nxf7 {[%emt 0:03:01]} Rxd4 {[%emt 0:00:27]} 25. Kf1 {[%emt 0:00:06]} Ba5 {[%emt 0:04:24]} 26. Rc1 {[%emt 0:01:09]} Rdxe4 {[%emt 0:01:42]} 27. Nd6 {[%emt 0:01:12]} Re1+ {[%emt 0:00:40]} 28. Rxe1 {[%emt 0:00:04]} Rxe1+ {[%emt 0:00:42]} 29. Kf2 {[%emt 0:01:45]} Nf4 {[%emt 0:02:37]} 30. Nc4 {[%emt 0:00:00]} Re2+ {[%emt 0:04:06]} 31. Kf1 {[%emt 0:00:00]} Bb4 {[%emt 0:02:29]} 32. a3 {[%emt 0:00:00]} Re1+ {[%emt 0:02:38]} 33. Kf2 {[%emt 0:00:00]} Re2+ {[%emt 0:00:38]} 34. Kf1 {[%emt 0:00:00]} Re1+ {[%emt 0:00:32]} 35. Kf2 {[%emt 0:00:00]} Re2+ {[%emt 0:00:11]} 36. Kf1 {[%emt 0:00:01]} Re1+ {[%emt 0:04:59]} 37. Kf2 {[%emt 0:03:59]} 1/2-1/2